bitfinex/quotes_BTCUSD_20240911
["timestamp","ask_amount","ask_price","bid_price","bid_amount"]
[1726054998113,0.26292016,56892.0,56891.0,0.013]
[1726054999428,0.26292016,56892.0,56891.0,0.006]
[1726055000551,0.26292016,56892.0,56891.0,0.013]
[1726055000982,0.26292016,56892.0,56891.0,0.006]
[1726055001199,0.26492016,56892.0,56891.0,0.006]
[1726055001711,0.26492016,56892.0,56889.0,0.1373]
[1726055001938,0.26792016,56892.0,56889.0,0.1373]
[1726055002576,0.26292016,56892.0,56889.0,0.1373]
[1726055003011,0.26792016,56892.0,56889.0,0.1373]
[1726055003441,0.26592016,56892.0,56889.0,0.1373]
[1726055003901,0.26792016,56892.0,56889.0,0.1373]
[1726055004335,0.26792016,56892.0,56890.0,0.35474018]
[1726055004336,0.04204196,56892.0,56890.0,0.35474018]
[1726055004565,0.03904196,56892.0,56891.0,0.3135]
[1726055004791,0.03904196,56892.0,56891.0,0.48944018]
[1726055005001,0.035818,56892.0,56891.0,0.48944018]
[1726055005209,0.032818,56892.0,56891.0,0.48944018]
[1726055005664,0.034818,56892.0,56891.0,0.48944018]
[1726055006079,0.032818,56892.0,56891.0,0.48944018]
[1726055006295,0.030818,56892.0,56891.0,0.48944018]
[1726055006506,0.031818,56892.0,56891.0,0.48944018]
[1726055006736,0.034818,56892.0,56891.0,0.48944018]
[1726055006951,0.033818,56892.0,56891.0,0.48944018]
[1726055007377,0.033818,56892.0,56891.0,0.49044018]
[1726055007596,0.03886369,56892.0,56891.0,0.49044018]
[1726055007861,0.06255566,56892.0,56891.0,0.3145]
[1726055008079,0.26174189,56892.0,56891.0,0.1357]
[1726055008770,0.28799788,56892.0,56891.0,0.001]
[1726055009492,0.46393806,56892.0,56891.0,0.001]
[1726055009712,0.05669197,56883.0,56881.0,0.001636]
[1726055010605,0.0050274,56882.0,56881.0,0.001636]
[1726055011306,0.06171937,56882.0,56881.0,0.001636]
[1726055012244,0.06271937,56882.0,56881.0,0.011636]
[1726055012456,0.06171937,56882.0,56881.0,0.001636]
[1726055012680,0.06271937,56882.0,56881.0,0.019636]
[1726055013117,0.06271937,56882.0,56881.0,0.001636]
[1726055013790,0.06271937,56882.0,56881.0,0.004636]
[1726055014235,0.08931993,56882.0,56881.0,0.001636]
[1726055014478,0.08931993,56882.0,56881.0,0.005636]
[1726055014927,0.08831993,56882.0,56881.0,0.003636]
[1726055015152,0.08831993,56882.0,56881.0,0.004636]
[1726055018067,0.26426011,56882.0,56881.0,0.004636]
[1726055018283,0.28726011,56882.0,56881.0,0.004636]
[1726055019225,0.23765955,56882.0,56881.0,0.004636]
[1726055029090,0.2558782,56878.0,56877.0,0.001636]
[1726055029530,0.2619487,56878.0,56877.0,0.001636]
[1726055030448,0.2629487,56878.0,56877.0,0.007636]
[1726055030668,0.30913759,56878.0,56877.0,0.013636]
[1726055030888,0.2629487,56878.0,56877.0,0.150336]
[1726055031107,0.2629487,56878.0,56877.0,0.329336]
[1726055032239,0.23625673,56878.0,56877.0,0.329336]
[1726055032454,0.0070705,56878.0,56877.0,0.329336]
[1726055032895,0.001,56878.0,56877.0,0.329336]
[1726055033367,0.05750997,56885.0,56880.0,0.3157]
[1726055033597,0.05750997,56885.0,56877.0,0.001636]
[1726055033598,0.03,56883.0,56882.0,0.3157]
[1726055034321,0.030818,56885.0,56878.0,0.3157]
[1726055034595,0.030818,56885.0,56879.0,0.3157]
[1726055034832,0.030818,56885.0,56882.0,0.37075501]
[1726055034833,0.000818,56885.0,56882.0,0.37075501]
[1726055035061,0.000818,56885.0,56884.0,0.1367]
[1726055035334,0.000818,56885.0,56884.0,0.49164018]
[1726055036499,0.000818,56885.0,56884.0,0.49364018]
[1726055037000,0.000818,56885.0,56884.0,0.50464018]
[1726055037252,0.000818,56885.0,56884.0,0.49964018]
[1726055037473,0.000818,56885.0,56884.0,0.49364018]
[1726055037715,0.000818,56885.0,56884.0,0.49864018]
[1726055038179,0.000818,56885.0,56884.0,0.49364018]
[1726055038649,0.000818,56885.0,56884.0,0.49164018]
[1726055038893,0.000818,56885.0,56884.0,0.3207]
[1726055039381,0.000818,56885.0,56884.0,0.3307]
[1726055039608,0.00582217,56885.0,56884.0,0.3307]
[1726055039823,0.000818,56885.0,56884.0,0.3207]
[1726055040055,0.004744,56885.0,56884.0,0.3207]
[1726055040286,0.2558782,56891.0,56884.0,0.3217]
[1726055040511,0.22918623,56891.0,56885.0,0.3094]
[1726055040747,0.03,56891.0,56886.0,0.1716]
[1726055040974,0.03,56891.0,56888.0,0.1378]
[1726055042109,0.000818,56892.0,56888.0,0.1378]
[1726055042359,0.03,56891.0,56888.0,0.1378]
[1726055044513,0.03,56891.0,56889.0,0.02]
[1726055045283,0.03,56891.0,56890.0,0.1368]
[1726055045824,0.000818,56892.0,56890.0,0.48404018]
[1726055046088,0.000818,56892.0,56891.0,0.1368]
[1726055047268,0.030818,56892.0,56891.0,0.1368]
[1726055047513,0.030818,56892.0,56891.0,0.1418]
[1726055049176,0.030818,56892.0,56891.0,0.1468]
[1726055049647,0.030818,56892.0,56891.0,0.1418]
[1726055050129,0.030818,56892.0,56891.0,0.1368]
[1726055050354,0.030818,56892.0,56891.0,0.1418]
[1726055050800,0.030818,56892.0,56891.0,0.1368]
[1726055056182,0.000818,56892.0,56891.0,0.1368]
[1726055056407,0.030818,56892.0,56891.0,0.1368]
[1726055057587,0.02669197,56891.0,56889.0,0.02]
[1726055057811,0.19918623,56890.0,56889.0,0.02]
[1726055059216,0.19918623,56890.0,56889.0,0.021]
[1726055059639,0.19918623,56890.0,56889.0,0.02]
[1726055059856,0.19918623,56890.0,56889.0,0.022]
[1726055060300,0.19918623,56890.0,56889.0,0.021]
[1726055060763,0.19918623,56890.0,56889.0,0.023]
[1726055061001,0.19918623,56890.0,56889.0,0.022]
[1726055061939,0.19918623,56890.0,56889.0,0.02]
[1726055062400,0.19918623,56890.0,56889.0,0.022]
[1726055063070,0.2558782,56890.0,56889.0,0.022]
[1726055063322,0.43181838,56890.0,56889.0,0.022]
[1726055063559,0.43181838,56890.0,56889.0,0.021]
[1726055063841,0.43181838,56890.0,56889.0,0.024]
[1726055063842,0.61721838,56890.0,56889.0,0.024]
[1726055064085,0.61721838,56890.0,56889.0,0.023]
[1726055064086,0.68210382,56890.0,56889.0,0.023]
[1726055064749,0.69370845,56890.0,56889.0,0.023]
[1726055065192,0.69370845,56890.0,56889.0,0.02]
[1726055065411,0.69370845,56890.0,56889.0,0.001]
[1726055066313,0.2558782,56890.0,56889.0,0.001]
[1726055066528,0.05669197,56890.0,56889.0,0.001]
[1726055066742,0.05669197,56890.0,56889.0,0.002]
[1726055067215,0.05669197,56890.0,56889.0,0.001]
[1726055067476,0.05669197,56890.0,56889.0,0.002]
[1726055067708,0.2558782,56890.0,56889.0,0.001]
[1726055068201,0.2558782,56890.0,56887.0,0.1338]
[1726055068447,0.05669197,56888.0,56887.0,0.1338]
[1726055068694,0.03,56888.0,56887.0,0.304]
[1726055071370,0.03,56888.0,56887.0,0.306]
[1726055072311,0.000818,56892.0,56887.0,0.306]
[1726055072312,0.000818,56892.0,56888.0,0.2985]
[1726055072537,0.000818,56892.0,56889.0,0.34485532]
[1726055072769,0.000818,56892.0,56890.0,0.1654]
[1726055073025,0.000818,56892.0,56891.0,0.1331]
[1726055074400,0.000818,56892.0,56891.0,0.1381]
[1726055075551,0.000818,56892.0,56891.0,0.1431]
[1726055075983,0.000818,56892.0,56891.0,0.1331]
[1726055076233,0.000818,56892.0,56891.0,0.1351]
[1726055076457,0.000818,56892.0,56891.0,0.1361]
[1726055076750,0.000818,56892.0,56891.0,0.1351]
[1726055076971,0.000818,56892.0,56891.0,0.1361]
[1726055077616,0.000818,56892.0,56891.0,0.18816634]
[1726055086451,0.000818,56892.0,56891.0,0.18825051]
[1726055090696,0.000818,56892.0,56891.0,0.18625051]
[1726055091129,0.000818,56892.0,56891.0,0.18725051]
[1726055091349,0.000818,56892.0,56891.0,0.1351]
[1726055092015,0.000818,56892.0,56891.0,0.1361]
[1726055093288,0.000818,56892.0,56891.0,0.1351]
[1726055093516,0.1713,56891.0,56877.0,0.001636]
[1726055093745,0.19918623,56887.0,56877.0,0.001636]
[1726055093966,0.34724018,56886.0,56877.0,0.001636]
[1726055094189,0.47024018,56886.0,56877.0,0.001636]
[1726055094864,0.46274018,56886.0,56885.0,0.001]
[1726055095089,0.66192641,56886.0,56885.0,0.001]
[1726055095310,0.58833968,56886.0,56877.0,0.001636]
[1726055095544,0.19918623,56882.0,56877.0,0.001636]
[1726055095761,0.66232641,56882.0,56877.0,0.001636]
[1726055097115,0.66232641,56882.0,56881.0,0.002636]
[1726055097992,0.66232641,56882.0,56881.0,0.001636]
[1726055098222,0.73778038,56882.0,56881.0,0.002636]
[1726055098695,0.73778038,56882.0,56881.0,0.001636]
[1726055099389,0.73978038,56882.0,56881.0,0.002636]
[1726055099860,0.73978038,56882.0,56881.0,0.003636]
[1726055100289,0.73978038,56882.0,56881.0,0.002636]
[1726055100509,0.73778038,56882.0,56881.0,0.002636]
[1726055100760,0.73778038,56882.0,56881.0,0.001636]
[1726055101012,0.73778038,56882.0,56881.0,0.002636]
[1726055101013,0.73878038,56882.0,56881.0,0.002636]
[1726055101454,0.73778038,56882.0,56881.0,0.001636]
[1726055101675,0.73878038,56882.0,56881.0,0.003636]
[1726055103292,0.79547235,56882.0,56881.0,0.003636]
[1726055103940,0.05669197,56878.0,56877.0,0.001636]
[1726055104208,0.51136562,56878.0,56877.0,0.001636]
[1726055104683,0.51136562,56878.0,56870.0,0.0021172]
[1726055104684,0.05669197,56875.0,56870.0,0.0021172]
[1726055104930,0.05669197,56867.0,56866.0,0.001634]
[1726055105132,0.43181838,56867.0,56866.0,0.001634]
[1726055105623,0.43181838,56867.0,56863.0,0.0041141]
[1726055105624,0.05669197,56864.0,56863.0,0.0041141]
[1726055105843,0.05669197,56864.0,56851.0,0.0041161]
[1726055105844,0.2558782,56860.0,56851.0,0.0041161]
[1726055106114,0.43181838,56860.0,56851.0,0.0041161]
[1726055107224,0.43181838,56860.0,56859.0,0.002636]
[1726055107466,0.53181838,56860.0,56859.0,0.002636]
[1726055107677,0.2558782,56852.0,56851.0,0.0041161]
[1726055107899,0.28146602,56852.0,56851.0,0.0041161]
[1726055109048,0.4574062,56852.0,56851.0,0.0041161]
[1726055109726,0.4574062,56852.0,56836.0,0.001636]
[1726055109727,0.05669197,56841.0,56836.0,0.001636]
[1726055111105,0.06869197,56841.0,56840.0,0.0041161]
[1726055111323,0.08169197,56841.0,56840.0,0.0041161]
[1726055111544,0.10977979,56841.0,56840.0,0.0041161]
[1726055111767,0.09677979,56841.0,56840.0,0.0041161]
[1726055111990,0.2808782,56841.0,56840.0,0.0041161]
[1726055112677,0.2688782,56841.0,56840.0,0.0041161]
[1726055112912,0.2808782,56841.0,56840.0,0.0051161]
[1726055113147,0.2688782,56841.0,56840.0,0.0041161]
[1726055113384,0.29696602,56841.0,56840.0,0.0041161]
[1726055113630,0.30996602,56841.0,56840.0,0.0051161]
[1726055113864,0.28396602,56841.0,56840.0,0.0041161]
[1726055114351,0.30896602,56841.0,56840.0,0.0061161]
[1726055114821,0.29696602,56841.0,56840.0,0.0051161]
[1726055115042,0.31096602,56841.0,56840.0,0.0061161]
[1726055115562,0.29696602,56841.0,56840.0,0.0051161]
[1726055115780,0.29596602,56841.0,56840.0,0.0051161]
[1726055116667,0.30796602,56841.0,56840.0,0.0061161]
[1726055117120,0.28396602,56841.0,56840.0,0.0041161]
[1726055117314,0.30996602,56841.0,56840.0,0.0061161]
[1726055117981,0.29596602,56841.0,56840.0,0.0051161]
[1726055118423,0.4859062,56841.0,56840.0,0.0061161]
[1726055118940,0.4719062,56841.0,56840.0,0.0051161]
[1726055119160,0.4599062,56841.0,56840.0,0.0041161]
[1726055119409,0.4709062,56841.0,56840.0,0.0051161]
[1726055119646,0.4599062,56841.0,56840.0,0.0041161]
[1726055120102,0.4709062,56841.0,56840.0,0.0051161]
[1726055120363,0.4729062,56841.0,56840.0,0.0051161]
[1726055120619,0.4829062,56841.0,56840.0,0.0051161]
[1726055120864,0.4699062,56841.0,56840.0,0.0051161]
[1726055121121,0.4719062,56841.0,56840.0,0.0051161]
[1726055121565,0.4719062,56841.0,56840.0,0.0041161]
[1726055121566,0.4599062,56841.0,56840.0,0.0041161]
[1726055121803,0.29596602,56841.0,56840.0,0.1435161]
[1726055123190,0.30696602,56841.0,56840.0,0.0061161]
[1726055123418,0.29596602,56841.0,56840.0,0.0051161]
[1726055123644,0.4719062,56841.0,56840.0,0.0051161]
[1726055123865,0.4829062,56841.0,56840.0,0.0061161]
[1726055124752,0.5059062,56841.0,56840.0,0.0061161]
[1726055125477,0.28371997,56841.0,56840.0,0.0061161]
[1726055125674,0.4829062,56841.0,56840.0,0.0061161]
[1726055126124,0.45481838,56841.0,56840.0,0.0061161]
[1726055127892,0.44281838,56841.0,56840.0,0.0051161]
[1726055128141,0.43181838,56841.0,56840.0,0.0041161]
[1726055128355,0.2798782,56841.0,56840.0,0.0061161]
[1726055128575,0.2798782,56841.0,56840.0,0.1424161]
[1726055128576,0.32306004,56841.0,56840.0,0.1424161]
[1726055128787,0.31006004,56841.0,56840.0,0.1414161]
[1726055129915,0.29906004,56841.0,56840.0,0.1404161]
[1726055130134,0.30406004,56841.0,56840.0,0.1404161]
[1726055130807,0.30806004,56841.0,56840.0,0.1404161]
[1726055131515,0.48400022,56841.0,56840.0,0.1404161]
[1726055132212,0.48400022,56841.0,56840.0,0.0041161]
[1726055134876,0.48400022,56841.0,56840.0,0.3139161]
[1726055134877,0.06569197,56841.0,56840.0,0.3139161]
[1726055135111,0.03,56845.0,56841.0,0.3171]
[1726055135348,0.03,56845.0,56842.0,0.1753]
[1726055135566,0.03,56845.0,56844.0,0.1753]
[1726055135802,0.03,56845.0,56844.0,0.3056]
[1726055136894,0.22918623,56845.0,56844.0,0.3056]
[1726055137178,0.2558782,56845.0,56844.0,0.3056]
[1726055138286,0.2598782,56845.0,56844.0,0.3056]
[1726055138513,0.2568782,56845.0,56844.0,0.3056]
[1726055138739,0.2578782,56845.0,56844.0,0.3056]
[1726055138957,0.2568782,56845.0,56844.0,0.3056]
[1726055139232,0.2558782,56845.0,56844.0,0.3056]
[1726055140570,0.2558782,56845.0,56844.0,0.3066]
[1726055140784,0.05669197,56845.0,56844.0,0.3066]
[1726055141083,0.05669197,56845.0,56844.0,0.3056]
[1726055141291,0.05669197,56845.0,56844.0,0.3106]
[1726055141509,0.05669197,56845.0,56844.0,0.3066]
[1726055143343,0.05669197,56845.0,56844.0,0.3056]
[1726055143616,0.03,56845.0,56844.0,0.3056]
[1726055143863,0.03,56845.0,56844.0,0.3066]
[1726055144307,0.03,56845.0,56844.0,0.3056]
[1726055144542,0.03,56845.0,56844.0,0.3106]
[1726055145002,0.05669197,56845.0,56844.0,0.3056]
[1726055145217,0.05669197,56845.0,56844.0,0.3146]
[1726055145453,0.05769197,56845.0,56844.0,0.3236]
[1726055147794,0.2568782,56845.0,56844.0,0.018]
[1726055148025,0.458588,56845.0,56844.0,0.018]
[1726055148249,0.05769197,56845.0,56844.0,0.018]
[1726055148710,0.05769197,56845.0,56844.0,0.1564]
[1726055148950,0.05769197,56845.0,56844.0,0.3293]
[1726055150989,0.2568782,56845.0,56844.0,0.1564]
[1726055151231,0.28264782,56845.0,56844.0,0.1564]
[1726055151631,0.28264782,56845.0,56844.0,0.018]
[1726055151840,0.458588,56845.0,56844.0,0.018]
[1726055152827,0.457588,56845.0,56844.0,0.009]
[1726055153040,0.457588,56845.0,56844.0,0.01]
[1726055153705,0.05669197,56841.0,56840.0,0.1406161]
[1726055153948,0.301637,56841.0,56840.0,0.1406161]
[1726055155257,0.305637,56841.0,56840.0,0.1406161]
[1726055155470,0.301637,56841.0,56840.0,0.1406161]
[1726055156589,0.303637,56841.0,56840.0,0.1406161]
[1726055157073,0.305637,56841.0,56840.0,0.0041161]
[1726055157535,0.48157718,56841.0,56840.0,0.0041161]
[1726055162626,0.50457718,56841.0,56840.0,0.0041161]
[1726055163308,0.48157718,56841.0,56840.0,0.0041161]
[1726055163520,0.47957718,56841.0,56840.0,0.0041161]
[1726055163981,0.48757718,56841.0,56840.0,0.0051161]
[1726055164202,0.50857718,56841.0,56840.0,0.0051161]
[1726055164420,0.50857718,56841.0,56840.0,0.0061161]
[1726055164639,0.51657718,56841.0,56840.0,0.0061161]
[1726055164909,0.51657718,56841.0,56840.0,0.0051161]
[1726055164910,0.50857718,56841.0,56840.0,0.0051161]
[1726055165121,0.50857718,56841.0,56840.0,0.0061161]
[1726055165122,0.51657718,56841.0,56840.0,0.0061161]
[1726055165360,0.51657718,56841.0,56840.0,0.0051161]
[1726055165361,0.50857718,56841.0,56840.0,0.0051161]
[1726055165576,0.51857718,56841.0,56840.0,0.0061161]
[1726055167022,0.61857718,56841.0,56840.0,0.0061161]
[1726055168415,0.07469197,56841.0,56840.0,0.1360161]
[1726055168655,0.048,56841.0,56840.0,0.3101161]
[1726055169345,0.038,56841.0,56840.0,0.3091161]
[1726055169574,0.048,56841.0,56840.0,0.3101161]
[1726055170024,0.06469197,56841.0,56840.0,0.3091161]
[1726055170476,0.06569197,56841.0,56840.0,0.3221161]
[1726055170702,0.05769197,56841.0,56840.0,0.3211161]
[1726055171382,0.032,56841.0,56840.0,0.3301161]
[1726055171639,0.05769197,56841.0,56840.0,0.3211161]
[1726055171870,0.05669197,56841.0,56840.0,0.3081161]
[1726055172093,0.05769197,56841.0,56840.0,0.3211161]
[1726055172324,0.05869197,56841.0,56840.0,0.3341161]
[1726055177845,0.05769197,56841.0,56840.0,0.3211161]
[1726055178073,0.05669197,56841.0,56840.0,0.3081161]
[1726055178306,0.05669197,56841.0,56840.0,0.36725628]
[1726055178307,0.001,56841.0,56840.0,0.36725628]
[1726055178769,0.001,56841.0,56840.0,0.84048504]
[1726055179030,0.001,56841.0,56840.0,0.66154486]
[1726055179303,0.001,56841.0,56840.0,0.3281161]
[1726055179535,0.002,56841.0,56840.0,0.3351161]
[1726055179760,0.001,56841.0,56840.0,0.3281161]
[1726055179981,0.03,56842.0,56840.0,0.3235161]
[1726055180238,0.03,56842.0,56841.0,0.1422]
[1726055180478,0.02994378,56842.0,56841.0,0.1422]
[1726055180893,0.02994378,56842.0,56841.0,0.3141]
[1726055181601,0.02994378,56842.0,56841.0,0.36259113]
[1726055181857,0.02994378,56842.0,56841.0,0.3102]
[1726055182049,0.03194378,56842.0,56841.0,0.3242]
[1726055183450,0.002,56842.0,56841.0,0.55453419]
[1726055183933,0.02994378,56850.0,56841.0,0.55453419]
[1726055184140,0.02669197,56853.0,56841.0,0.55453419]
[1726055184141,0.02994378,56853.0,56850.0,0.1309]
[1726055184355,0.02994378,56853.0,56849.0,0.1701]
[1726055184356,0.02994378,56853.0,56851.0,0.1701]
[1726055184572,0.02994378,56853.0,56852.0,0.1309]
[1726055185025,0.05663575,56853.0,56852.0,0.1309]
[1726055185505,0.06063575,56853.0,56852.0,0.1309]
[1726055186200,0.06463575,56853.0,56852.0,0.1309]
[1726055189135,0.05663575,56857.0,56852.0,0.13441758]
[1726055189349,0.02994378,56855.0,56854.0,0.1305]
[1726055190007,0.02994378,56859.0,56855.0,0.2998]
[1726055190227,0.02994378,56859.0,56856.0,0.30644018]
[1726055190481,0.02994378,56859.0,56857.0,0.1409]
[1726055191378,0.02994378,56859.0,56858.0,0.3084]
[1726055192819,0.02994378,56859.0,56858.0,0.3114]
[1726055194137,0.05663575,56859.0,56858.0,0.3114]
[1726055194368,0.05663575,56859.0,56858.0,0.3144]
[1726055195522,0.05745375,56859.0,56858.0,0.3144]
[1726055201974,0.000818,56859.0,56858.0,0.3144]
[1726055202235,0.000818,56859.0,56858.0,0.49034018]
[1726055202447,0.000818,56859.0,56858.0,0.49234018]
[1726055203086,0.000818,56859.0,56858.0,0.48634018]
[1726055203328,0.000818,56859.0,56858.0,0.58634018]
[1726055203559,0.52782518,56872.0,56867.0,0.164]
[1726055203791,0.52782518,56872.0,56869.0,0.1391]
[1726055204028,0.02994378,56873.0,56870.0,0.17594018]
[1726055204721,0.02994378,56873.0,56869.0,0.1391]
[1726055205227,0.05663575,56873.0,56870.0,0.008]
[1726055205694,0.05663575,56873.0,56869.0,0.1391]
[1726055206238,0.05663575,56873.0,56869.0,0.1471]
[1726055206694,0.05663575,56873.0,56870.0,0.009]
[1726055206924,0.05663575,56873.0,56869.0,0.1471]
[1726055207372,0.05663575,56873.0,56869.0,0.1561]
[1726055207603,0.05663575,56873.0,56869.0,0.1471]
[1726055208081,0.05663575,56873.0,56870.0,0.009]
[1726055208319,0.05663575,56873.0,56869.0,0.1391]
[1726055208585,0.05663575,56873.0,56870.0,0.008]
[1726055209072,0.05745375,56873.0,56869.0,0.1391]
[1726055209292,0.05745375,56873.0,56869.0,0.1471]
[1726055209745,0.05745375,56873.0,56869.0,0.1481]
[1726055210208,0.05745375,56873.0,56870.0,0.008]
[1726055211390,0.05745375,56873.0,56869.0,0.1391]
[1726055211614,0.05745375,56873.0,56870.0,0.009]
[1726055212551,0.05745375,56873.0,56870.0,0.017]
[1726055217495,0.05663575,56871.0,56870.0,0.017]
[1726055218185,0.05663575,56871.0,56870.0,0.009]
[1726055218445,0.05663575,56871.0,56870.0,0.001]
[1726055218915,0.05663575,56870.0,56869.0,0.1391]
[1726055219143,0.05663575,56870.0,56804.0,0.50952454]
[1726055219144,0.05663575,56863.0,56859.0,0.3036]
[1726055219371,0.05663575,56861.0,56859.0,0.3036]
[1726055219598,0.05663575,56860.0,56859.0,0.1318]
[1726055220534,0.05663575,56860.0,56859.0,0.1398]
[1726055220757,0.05663575,56860.0,56859.0,0.1318]
[1726055221009,0.05663575,56857.0,56856.0,0.1364]
[1726055221544,0.02669197,56855.0,56853.0,0.133]
[1726055221737,0.05663575,56855.0,56853.0,0.133]
[1726055223997,0.05663575,56855.0,56853.0,0.161]
[1726055227341,0.05663575,56857.0,56853.0,0.161]
[1726055227566,0.05663575,56855.0,56853.0,0.161]
[1726055228265,0.05663575,56855.0,56853.0,0.147]
[1726055228713,0.05663575,56855.0,56853.0,0.161]
[1726055229866,0.05663575,56855.0,56853.0,0.147]
[1726055230093,0.05663575,56855.0,56853.0,0.133]
[1726055230315,0.05663575,56855.0,56853.0,0.147]
[1726055230545,0.05663575,56855.0,56853.0,0.161]
[1726055230773,0.05663575,56855.0,56853.0,0.147]
[1726055230991,0.05663575,56855.0,56853.0,0.161]
[1726055232161,0.02994378,56857.0,56854.0,0.2996]
[1726055232393,0.02994378,56855.0,56854.0,0.2996]
[1726055233530,0.02994378,56855.0,56854.0,0.3136]
[1726055233969,0.02994378,56855.0,56854.0,0.3276]
[1726055236771,0.20561074,56872.0,56858.0,0.1746]
[1726055236772,0.05663575,56869.0,56858.0,0.1746]
[1726055237031,0.02994378,56867.0,56860.0,0.3108]
[1726055237254,0.02669197,56871.0,56861.0,0.17811683]
[1726055237255,0.02994378,56870.0,56861.0,0.17811683]
[1726055237531,0.02994378,56870.0,56862.0,0.1362]
[1726055237783,0.02994378,56869.0,56864.0,0.1416]
[1726055238021,0.02994378,56867.0,56864.0,0.1416]
[1726055238466,0.02994378,56865.0,56864.0,0.1416]
[1726055238683,0.02994378,56868.0,56864.0,0.48264018]
[1726055238903,0.02994378,56867.0,56866.0,0.1416]
[1726055239618,0.02994378,56868.0,56866.0,0.1416]
[1726055240288,0.02994378,56867.0,56866.0,0.1416]
[1726055240745,0.05663575,56867.0,56866.0,0.1416]
[1726055240968,0.05663575,56867.0,56866.0,0.1546]
[1726055241190,0.05663575,56867.0,56866.0,0.1676]
[1726055241415,0.05663575,56867.0,56866.0,0.1416]
[1726055241865,0.05663575,56867.0,56866.0,0.1556]
[1726055242762,0.05663575,56867.0,56866.0,0.1696]
[1726055244933,0.05745375,56867.0,56866.0,0.1696]
[1726055246045,0.000818,56867.0,56866.0,0.1696]
[1726055246266,0.05745375,56867.0,56866.0,0.1696]
[1726055248341,0.03076178,56867.0,56866.0,0.1696]
[1726055248555,0.05745375,56867.0,56866.0,0.1696]
[1726055248781,0.03076178,56867.0,56866.0,0.1696]
[1726055249009,0.05745375,56867.0,56866.0,0.1696]
[1726055250902,0.03076178,56867.0,56866.0,0.1696]
[1726055252115,0.01076178,56867.0,56866.0,0.1696]
[1726055254675,0.02669197,56871.0,56866.0,0.1696]
[1726055254676,0.03745375,56871.0,56866.0,0.1696]
[1726055255381,0.01076178,56870.0,56866.0,0.1696]
[1726055255810,0.01076178,56869.0,56866.0,0.1696]
[1726055256067,0.01076178,56869.0,56866.0,0.1556]
[1726055256284,0.01076178,56869.0,56866.0,0.1646]
[1726055256504,0.01076178,56867.0,56866.0,0.1646]
[1726055256725,0.01076178,56867.0,56866.0,0.1556]
[1726055257192,0.01076178,56867.0,56866.0,0.1536]
[1726055257414,0.01076178,56868.0,56866.0,0.1636]
[1726055257654,0.01076178,56868.0,56866.0,0.1516]
[1726055257878,0.01076178,56868.0,56866.0,0.1656]
[1726055258111,0.01076178,56868.0,56866.0,0.1556]
[1726055258392,0.01076178,56868.0,56866.0,0.157236]
[1726055260038,0.01076178,56868.0,56866.0,0.170236]
[1726055260906,0.000818,56869.0,56866.0,0.170236]
[1726055260907,0.01076178,56867.0,56866.0,0.170236]
[1726055261164,0.01076178,56867.0,56866.0,0.156236]
[1726055261362,0.01076178,56867.0,56866.0,0.170236]
[1726055262287,0.01076178,56867.0,56866.0,0.156236]
[1726055262543,0.01076178,56867.0,56866.0,0.170236]
[1726055262981,0.01157978,56869.0,56866.0,0.170236]
[1726055263203,0.01076178,56867.0,56866.0,0.157236]
[1726055263428,0.01157978,56869.0,56866.0,0.157236]
[1726055263648,0.01157978,56869.0,56866.0,0.171236]
[1726055264316,0.01157978,56869.0,56866.0,0.157236]
[1726055264543,0.01157978,56869.0,56866.0,0.143236]
[1726055264771,0.01157978,56869.0,56866.0,0.167236]
[1726055264988,0.01076178,56868.0,56866.0,0.167236]
[1726055265216,0.01076178,56867.0,56866.0,0.167236]
[1726055265925,0.01076178,56867.0,56866.0,0.155236]
[1726055266363,0.01076178,56867.0,56866.0,0.169236]
[1726055266580,0.01076178,56867.0,56866.0,0.157236]
[1726055266793,0.01076178,56867.0,56866.0,0.170236]
[1726055267225,0.01076178,56867.0,56866.0,0.157236]
[1726055267681,0.03745375,56867.0,56866.0,0.143236]
[1726055268122,0.01076178,56867.0,56866.0,0.171236]
[1726055268351,0.000818,56869.0,56866.0,0.17475277]
[1726055268638,0.01076178,56867.0,56866.0,0.171236]
[1726055268855,0.41258016,56867.0,56866.0,0.029636]
[1726055269082,0.65061998,56867.0,56866.0,0.029636]
[1726055269312,0.75061998,56867.0,56866.0,0.029636]
[1726055269538,0.75061998,56867.0,56866.0,0.001636]
[1726055269769,0.75061998,56867.0,56866.0,0.013636]
[1726055269995,0.75061998,56867.0,56866.0,0.025636]
[1726055270435,0.75061998,56867.0,56866.0,0.013636]
[1726055270873,0.75061998,56867.0,56866.0,0.014636]
[1726055271107,0.75143798,56867.0,56866.0,0.002636]
[1726055271559,0.75243798,56867.0,56866.0,0.003636]
[1726055271801,0.03745375,56854.0,56853.0,0.001636]
[1726055272034,0.23663998,56854.0,56853.0,0.001636]
[1726055273162,0.51358016,56854.0,56853.0,0.001636]
[1726055273384,0.51558016,56854.0,56853.0,0.001636]
[1726055273665,0.51358016,56854.0,56853.0,0.001636]
[1726055273906,0.58601717,56854.0,56853.0,0.001636]
[1726055274124,0.23663998,56849.0,56848.0,0.001636]
[1726055274351,0.51258016,56849.0,56848.0,0.001636]
[1726055275789,0.51358016,56849.0,56848.0,0.002636]
[1726055276028,0.56813818,56849.0,56848.0,0.002636]
[1726055276284,0.13845375,56849.0,56848.0,0.002636]
[1726055276533,0.001,56849.0,56848.0,0.002636]
[1726055276777,0.001,56849.0,56848.0,0.296736]
[1726055277010,0.005,56849.0,56848.0,0.30125371]
[1726055277507,0.005,56849.0,56848.0,0.30025371]
[1726055277508,0.001,56849.0,56848.0,0.30025371]
[1726055277753,0.005,56849.0,56848.0,0.30125371]
[1726055278006,0.000818,56867.0,56850.0,0.03]
[1726055278239,0.000818,56867.0,56856.0,0.3024]
[1726055278240,0.01076178,56863.0,56856.0,0.3024]
[1726055278479,0.02669197,56865.0,56857.0,0.17945715]
[1726055278480,0.01076178,56860.0,56857.0,0.17945715]
[1726055278954,0.01055013,56860.0,56857.0,0.17594018]
[1726055279198,0.01055013,56860.0,56856.0,0.3024]
[1726055280104,0.01055013,56860.0,56857.0,0.005]
[1726055280764,0.01055013,56860.0,56856.0,0.3054]
[1726055280990,0.01055013,56860.0,56858.0,0.17594018]